[Event "Live Chess"]
[Site "Chess.com"]
[Date "2023.05.20"]
[Round "-"]
[White "BJAW87"]
[Black "manthanit"]
[Result "1-0"]
[WhiteElo "1438"]
[BlackElo "1008"]
[TimeControl "300"]
[EndTime "14:23:47 PDT"]
[Termination "BJAW87 won on time"]

1. e4 {[%clk 0:04:58.5]} 1... e6 {[%clk 0:04:59.2]} 2. d4 {[%clk 0:04:57.6]}
2... d5 {[%clk 0:04:58.7]} 3. exd5 {[%clk 0:04:56.8]} 3... exd5 {[%clk
0:04:57.7]} 4. Nf3 {[%clk 0:04:56]} 4... c5 {[%clk 0:04:57.2]} 5. Bg5 {[%clk
0:04:47.7]} 5... f6 {[%clk 0:04:45.9]} 6. Bh4 {[%clk 0:04:43.8]} 6... Qb6 {[%clk
0:04:41.8]} 7. b3 {[%clk 0:04:20.4]} 7... cxd4 {[%clk 0:04:37]} 8. Nxd4 {[%clk
0:04:17.1]} 8... Bb4+ {[%clk 0:04:35.1]} 9. c3 {[%clk 0:04:14.3]} 9... Bc5
{[%clk 0:04:26]} 10. Bb5+ {[%clk 0:04:11.4]} 10... Bd7 {[%clk 0:04:23.6]} 11.
Bxd7+ {[%clk 0:04:10.1]} 11... Nxd7 {[%clk 0:04:22.4]} 12. O-O {[%clk
0:04:08.8]} 12... Ne7 {[%clk 0:04:20.8]} 13. Qg4 {[%clk 0:04:00.2]} 13... O-O
{[%clk 0:04:13.4]} 14. Ne6 {[%clk 0:03:50.7]} 14... Rf7 {[%clk 0:04:02.5]} 15.
Nd2 {[%clk 0:03:30.7]} 15... Ng6 {[%clk 0:04:00.7]} 16. Nxc5 {[%clk 0:03:23.1]}
16... Nxc5 {[%clk 0:03:48.6]} 17. Nf3 {[%clk 0:03:19.7]} 17... Re8 {[%clk
0:03:38.2]} 18. Rad1 {[%clk 0:03:12.5]} 18... Re4 {[%clk 0:03:33.7]} 19. Qg3
{[%clk 0:02:59.8]} 19... Qe6 {[%clk 0:02:41.8]} 20. Rfe1 {[%clk 0:02:30.8]}
20... Nxh4 {[%clk 0:02:29.7]} 21. Rxe4 {[%clk 0:02:19.1]} 21... Qxe4 {[%clk
0:02:22]} 22. Nxh4 {[%clk 0:02:15.9]} 22... Re7 {[%clk 0:02:07.2]} 23. Nf3
{[%clk 0:01:59]} 23... Qe2 {[%clk 0:01:55.8]} 24. Rf1 {[%clk 0:01:50.2]} 24...
Qxa2 {[%clk 0:01:17.3]} 25. b4 {[%clk 0:01:45.4]} 25... Nd3 {[%clk 0:00:58.8]}
26. Nd4 {[%clk 0:01:36.1]} 26... Kf7 {[%clk 0:00:17.3]} 27. Nb5 {[%clk
0:01:19.5]} 27... a6 {[%clk 0:00:14]} 28. Nd6+ {[%clk 0:01:18.3]} 28... Ke6
{[%clk 0:00:04.1]} 29. Nc8 {[%clk 0:01:10.7]} 29... Kf7 {[%clk 0:00:00.1]} 30.
Nxe7 {[%clk 0:01:09.3]} 1-0

[Event "Live Chess"]
[Site "Chess.com"]
[Date "2023.05.20"]
[Round "-"]
[White "f4nomore"]
[Black "SupremeTactician"]
[Result "0-1"]
[WhiteElo "1395"]
[BlackElo "2364"]
[TimeControl "300"]
[EndTime "14:23:53 PDT"]
[Termination "SupremeTactician won by resignation"]

1. d4 {[%clk 0:04:57.4]} 1... Nf6 {[%clk 0:04:58.7]} 2. Bg5 {[%clk 0:04:54.6]}
2... e6 {[%clk 0:04:57.7]} 3. e3 {[%clk 0:04:47]} 3... Be7 {[%clk 0:04:57]} 4.
Bxf6 {[%clk 0:04:44.3]} 4... Bxf6 {[%clk 0:04:56.3]} 5. Nf3 {[%clk 0:04:43.2]}
5... b6 {[%clk 0:04:55.7]} 6. Bd3 {[%clk 0:04:42]} 6... Bb7 {[%clk 0:04:54]} 7.
O-O {[%clk 0:04:37.8]} 7... O-O {[%clk 0:04:52.3]} 8. c4 {[%clk 0:04:35.3]} 8...
d6 {[%clk 0:04:51.6]} 9. Nc3 {[%clk 0:04:33.2]} 9... Nd7 {[%clk 0:04:48.2]} 10.
e4 {[%clk 0:04:24.8]} 10... Be7 {[%clk 0:04:44.6]} 11. d5 {[%clk 0:04:23]} 11...
e5 {[%clk 0:04:42.6]} 12. b3 {[%clk 0:04:19.6]} 12... a5 {[%clk 0:04:41.2]} 13.
Nb5 {[%clk 0:04:16.6]} 13... Re8 {[%clk 0:04:39.8]} 14. h3 {[%clk 0:04:08.1]}
14... Nf8 {[%clk 0:04:38.7]} 15. Nh2 {[%clk 0:04:06.5]} 15... Ng6 {[%clk
0:04:37.1]} 16. a4 {[%clk 0:03:51.6]} 16... Nf4 {[%clk 0:04:27.9]} 17. Bc2
{[%clk 0:03:47.3]} 17... Bc8 {[%clk 0:04:19.9]} 18. g3 {[%clk 0:03:42.1]} 18...
Nxh3+ {[%clk 0:04:16.8]} 19. Kg2 {[%clk 0:03:40.5]} 19... h6 {[%clk 0:04:03.3]}
20. Ng4 {[%clk 0:03:38.6]} 20... Bxg4 {[%clk 0:04:00.7]} 21. Qxg4 {[%clk
0:03:34.9]} 21... Ng5 {[%clk 0:04:00.6]} 22. f4 {[%clk 0:03:29.5]} 22... exf4
{[%clk 0:03:57.2]} 23. gxf4 {[%clk 0:03:28.1]} 23... Nh7 {[%clk 0:03:56.3]} 24.
Nd4 {[%clk 0:03:20.1]} 24... Nf6 {[%clk 0:03:54.2]} 25. Qf3 {[%clk 0:03:15.6]}
25... Bf8 {[%clk 0:03:52]} 26. Qg3 {[%clk 0:03:05.3]} 26... Nxe4 {[%clk
0:03:47.6]} 27. Bxe4 {[%clk 0:03:02.4]} 27... Rxe4 {[%clk 0:03:47.5]} 28. Nf5
{[%clk 0:02:55.2]} 28... Qf6 {[%clk 0:03:44]} 29. Nh4 {[%clk 0:02:29.2]} 29...
Rae8 {[%clk 0:03:27.2]} 30. Rad1 {[%clk 0:02:24.1]} 30... Re2+ {[%clk
0:03:25.2]} 31. Rf2 {[%clk 0:02:21.6]} 31... Rxf2+ {[%clk 0:03:24.5]} 32. Qxf2
{[%clk 0:02:19.9]} 32... Re4 {[%clk 0:03:18.7]} 33. Rf1 {[%clk 0:02:13.6]} 33...
Be7 {[%clk 0:03:14.3]} 34. Qf3 {[%clk 0:02:00.3]} 34... Rd4 {[%clk 0:02:55.9]}
35. Qf2 {[%clk 0:01:48.3]} 35... Rd3 {[%clk 0:02:45.8]} 36. Qe2 {[%clk
0:01:41.9]} 36... Rxb3 {[%clk 0:02:40.2]} 37. Nf5 {[%clk 0:01:30.2]} 37... Rb2
{[%clk 0:02:18.4]} 38. Nxe7+ {[%clk 0:01:28.6]} 38... Kh7 {[%clk 0:02:17.4]} 0-1

[Event "Live Chess"]
[Site "Chess.com"]
[Date "2023.05.20"]
[Round "-"]
[White "Supertromp"]
[Black "Jo1ts"]
[Result "1-0"]
[WhiteElo "2179"]
[BlackElo "720"]
[TimeControl "300"]
[EndTime "14:24:00 PDT"]
[Termination "Supertromp won by checkmate"]

1. e4 {[%clk 0:04:58.5]} 1... d5 {[%clk 0:04:58.5]} 2. exd5 {[%clk 0:04:57.4]}
2... Qxd5 {[%clk 0:04:57.4]} 3. Nf3 {[%clk 0:04:56.4]} 3... Qd8 {[%clk 0:04:55]}
4. Be2 {[%clk 0:04:54.5]} 4... Nf6 {[%clk 0:04:54]} 5. d4 {[%clk 0:04:53.5]}
5... Bf5 {[%clk 0:04:49.9]} 6. O-O {[%clk 0:04:52.5]} 6... e6 {[%clk 0:04:46.5]}
7. c4 {[%clk 0:04:51.6]} 7... Be7 {[%clk 0:04:44.8]} 8. Nc3 {[%clk 0:04:50.6]}
8... O-O {[%clk 0:04:43.1]} 9. h3 {[%clk 0:04:33.4]} 9... Nc6 {[%clk 0:04:35.3]}
10. Be3 {[%clk 0:04:32.4]} 10... Bb4 {[%clk 0:04:22.2]} 11. Nh4 {[%clk 0:04:21]}
11... Bxc3 {[%clk 0:04:08.8]} 12. bxc3 {[%clk 0:04:20.9]} 12... Be4 {[%clk
0:04:05.3]} 13. Bd3 {[%clk 0:04:17.2]} 13... Bxd3 {[%clk 0:04:02.3]} 14. Qxd3
{[%clk 0:04:17.1]} 14... e5 {[%clk 0:03:57.4]} 15. d5 {[%clk 0:04:15.4]} 15...
Na5 {[%clk 0:03:50]} 16. f3 {[%clk 0:04:00.8]} 16... c6 {[%clk 0:03:41.4]} 17.
Rad1 {[%clk 0:03:58.2]} 17... Qd6 {[%clk 0:03:33.5]} 18. Nf5 {[%clk 0:03:53.6]}
18... Qd7 {[%clk 0:03:18.7]} 19. d6 {[%clk 0:03:47.7]} 19... Rad8 {[%clk
0:03:09.4]} 20. c5 {[%clk 0:03:46.5]} 20... g6 {[%clk 0:03:04.2]} 21. Ne7+
{[%clk 0:03:44.9]} 21... Kh8 {[%clk 0:02:55.8]} 22. Bg5 {[%clk 0:03:43.2]} 22...
Nd5 {[%clk 0:02:37.7]} 23. Qxd5 {[%clk 0:03:42.2]} 23... cxd5 {[%clk 0:02:34.5]}
24. Bf6# {[%clk 0:03:41.4]} 1-0

[Event "Live Chess"]
[Site "Chess.com"]
[Date "2023.05.20"]
[Round "-"]
[White "JoshMcK"]
[Black "ChessTWSS"]
[Result "1/2-1/2"]
[WhiteElo "1552"]
[BlackElo "1516"]
[TimeControl "300"]
[EndTime "14:24:00 PDT"]
[Termination "Game drawn by repetition"]

1. e4 {[%clk 0:04:59.2]} 1... c5 {[%clk 0:04:49.9]} 2. c3 {[%clk 0:04:57.2]}
2... Nc6 {[%clk 0:04:43.5]} 3. d4 {[%clk 0:04:55]} 3... cxd4 {[%clk 0:04:37.8]}
4. cxd4 {[%clk 0:04:54.9]} 4... e6 {[%clk 0:04:31.3]} 5. Nf3 {[%clk 0:04:50.9]}
5... d5 {[%clk 0:04:27.7]} 6. exd5 {[%clk 0:04:49.7]} 6... exd5 {[%clk
0:04:26.8]} 7. Nc3 {[%clk 0:04:49.2]} 7... Nf6 {[%clk 0:04:19.3]} 8. Bb5 {[%clk
0:04:47.2]} 8... Bd7 {[%clk 0:04:10]} 9. O-O {[%clk 0:04:45.9]} 9... Bd6 {[%clk
0:04:00.4]} 10. Re1+ {[%clk 0:04:42.5]} 10... Be6 {[%clk 0:03:50.2]} 11. Bg5
{[%clk 0:04:39]} 11... O-O {[%clk 0:03:42.1]} 12. Ne5 {[%clk 0:04:31.7]} 12...
a6 {[%clk 0:03:37.8]} 13. Nxc6 {[%clk 0:04:26.9]} 13... bxc6 {[%clk 0:03:29.6]}
14. Bxc6 {[%clk 0:04:24.4]} 14... Rc8 {[%clk 0:03:25.5]} 15. Bxf6 {[%clk
0:04:23.3]} 15... Qxf6 {[%clk 0:03:17.3]} 16. Bxd5 {[%clk 0:04:20.8]} 16... Rxc3
{[%clk 0:03:05.9]} 17. Bxe6 {[%clk 0:04:19.9]} 17... fxe6 {[%clk 0:02:55.9]} 18.
bxc3 {[%clk 0:04:18.1]} 18... Bxh2+ {[%clk 0:02:50.6]} 19. Kxh2 {[%clk
0:04:15.7]} 19... Qh4+ {[%clk 0:02:47.4]} 20. Kg1 {[%clk 0:04:14.6]} 20... Qxf2+
{[%clk 0:02:42.3]} 21. Kh1 {[%clk 0:04:12]} 21... Qh4+ {[%clk 0:02:37]} 22. Kg1
{[%clk 0:04:11.3]} 22... Qf2+ {[%clk 0:02:31.8]} 23. Kh2 {[%clk 0:04:10.1]}
23... Qh4+ {[%clk 0:02:26.7]} 24. Kg1 {[%clk 0:04:09.2]} 24... Qf2+ {[%clk
0:02:20.1]} 1/2-1/2

[Event "Live Chess"]
[Site "Chess.com"]
[Date "2023.05.20"]
[Round "-"]
[White "stevochess11"]
[Black "Ferrarifan27"]
[Result "0-1"]
[WhiteElo "1782"]
[BlackElo "2073"]
[TimeControl "300"]
[EndTime "14:24:04 PDT"]
[Termination "Ferrarifan27 won by resignation"]

1. d4 {[%clk 0:04:55]} 1... Nf6 {[%clk 0:04:58.7]} 2. Nf3 {[%clk 0:04:54]} 2...
d5 {[%clk 0:04:55.9]} 3. e3 {[%clk 0:04:52.2]} 3... Bf5 {[%clk 0:04:54.2]} 4. c4
{[%clk 0:04:50.9]} 4... e6 {[%clk 0:04:53.1]} 5. Qb3 {[%clk 0:04:49.4]} 5... b6
{[%clk 0:04:49.8]} 6. Ne5 {[%clk 0:04:47.8]} 6... Bd6 {[%clk 0:04:41.8]} 7. cxd5
{[%clk 0:04:44.5]} 7... exd5 {[%clk 0:04:40.1]} 8. Bb5+ {[%clk 0:04:37.4]} 8...
Bd7 {[%clk 0:04:30.7]} 9. Nc3 {[%clk 0:04:33.3]} 9... O-O {[%clk 0:04:27.6]} 10.
Nxd5 {[%clk 0:04:20.7]} 10... Bxe5 {[%clk 0:03:58.3]} 11. dxe5 {[%clk
0:04:08.7]} 11... Nxd5 {[%clk 0:03:56.7]} 12. Qxd5 {[%clk 0:03:56.1]} 12... c6
{[%clk 0:03:53.4]} 13. Bxc6 {[%clk 0:03:26.8]} 13... Bxc6 {[%clk 0:03:51.2]} 14.
Qd6 {[%clk 0:03:25.4]} 14... Qxd6 {[%clk 0:03:47.8]} 15. exd6 {[%clk 0:03:02]}
15... Rd8 {[%clk 0:03:46.7]} 16. Bd2 {[%clk 0:02:59.5]} 16... Rxd6 {[%clk
0:03:44.7]} 17. Bb4 {[%clk 0:02:57.6]} 17... Rd7 {[%clk 0:03:39.2]} 18. O-O
{[%clk 0:02:54.6]} 18... Na6 {[%clk 0:03:38]} 19. Bc3 {[%clk 0:02:52.6]} 19...
Rad8 {[%clk 0:03:33.4]} 20. Rac1 {[%clk 0:02:50]} 20... Bb5 {[%clk 0:03:30.9]}
21. Rfe1 {[%clk 0:02:48]} 21... f6 {[%clk 0:03:27.7]} 22. b3 {[%clk 0:02:46.2]}
22... Kf7 {[%clk 0:03:25.6]} 23. a4 {[%clk 0:02:44.7]} 23... Bd3 {[%clk
0:03:22.4]} 24. b4 {[%clk 0:02:42.9]} 24... Be4 {[%clk 0:03:15.1]} 25. b5 {[%clk
0:02:40.7]} 25... Nc5 {[%clk 0:03:13.7]} 26. Bb4 {[%clk 0:02:35.7]} 26... Nd3
{[%clk 0:03:11.7]} 0-1

[Event "Live Chess"]
[Site "Chess.com"]
[Date "2023.05.20"]
[Round "-"]
[White "Delacorta"]
[Black "ramses-IIG"]
[Result "0-1"]
[WhiteElo "1408"]
[BlackElo "837"]
[TimeControl "300"]
[EndTime "14:24:06 PDT"]
[Termination "ramses-IIG won by checkmate"]

1. d4 {[%clk 0:04:57.4]} 1... d5 {[%clk 0:04:59.9]} 2. Nf3 {[%clk 0:04:56.4]}
2... Nc6 {[%clk 0:04:57]} 3. e3 {[%clk 0:04:55.7]} 3... Bf5 {[%clk 0:04:55.2]}
4. Bd3 {[%clk 0:04:53.1]} 4... Nb4 {[%clk 0:04:54]} 5. Bxf5 {[%clk 0:04:51.5]}
5... e6 {[%clk 0:04:50.7]} 6. Bd3 {[%clk 0:04:49.4]} 6... Bd6 {[%clk 0:04:47.1]}
7. a3 {[%clk 0:04:48.1]} 7... Nxd3+ {[%clk 0:04:45.5]} 8. Qxd3 {[%clk 0:04:47]}
8... Nf6 {[%clk 0:04:44.4]} 9. O-O {[%clk 0:04:44.5]} 9... O-O {[%clk
0:04:44.3]} 10. Nbd2 {[%clk 0:04:43]} 10... Ng4 {[%clk 0:04:42.5]} 11. b4 {[%clk
0:04:35.3]} 11... Qf6 {[%clk 0:04:36.2]} 12. h3 {[%clk 0:04:23.4]} 12... Nh6
{[%clk 0:04:28]} 13. Bb2 {[%clk 0:04:18]} 13... Nf5 {[%clk 0:04:23]} 14. Ne5
{[%clk 0:04:12.5]} 14... Nh4 {[%clk 0:04:13.9]} 15. Nd7 {[%clk 0:03:46.6]} 15...
Qg5 {[%clk 0:04:09.7]} 16. g3 {[%clk 0:03:33.2]} 16... Bxg3 {[%clk 0:04:07]} 17.
Nf3 {[%clk 0:03:23.2]} 17... Bh2+ {[%clk 0:03:58.2]} 18. Kxh2 {[%clk 0:03:14.6]}
18... Qg2# {[%clk 0:03:58.1]} 0-1

[Event "Live Chess"]
[Site "Chess.com"]
[Date "2023.05.20"]
[Round "-"]
[White "Greenbecker"]
[Black "ViktorTheCoolBoy"]
[Result "0-1"]
[WhiteElo "1645"]
[BlackElo "2510"]
[TimeControl "300"]
[EndTime "14:24:25 PDT"]
[Termination "ViktorTheCoolBoy won on time"]

1. e4 {[%clk 0:04:57.3]} 1... e5 {[%clk 0:04:56.7]} 2. Nf3 {[%clk 0:04:56.4]}
2... Nc6 {[%clk 0:04:55.5]} 3. Bb5 {[%clk 0:04:54.8]} 3... Nf6 {[%clk
0:04:54.7]} 4. O-O {[%clk 0:04:53.9]} 4... Nxe4 {[%clk 0:04:53.6]} 5. Re1 {[%clk
0:04:53]} 5... Nd6 {[%clk 0:04:52.8]} 6. Bxc6 {[%clk 0:04:52]} 6... dxc6 {[%clk
0:04:51.7]} 7. Nxe5 {[%clk 0:04:51.6]} 7... Be7 {[%clk 0:04:51.3]} 8. d4 {[%clk
0:04:50.1]} 8... O-O {[%clk 0:04:50.8]} 9. Nc3 {[%clk 0:04:49.5]} 9... Nf5
{[%clk 0:04:49.9]} 10. Be3 {[%clk 0:04:46.4]} 10... Be6 {[%clk 0:04:44.5]} 11.
Ne4 {[%clk 0:04:40.7]} 11... Bd5 {[%clk 0:04:36.3]} 12. Nc3 {[%clk 0:04:30.7]}
12... Be6 {[%clk 0:04:32.7]} 13. Ne4 {[%clk 0:04:28.7]} 13... Nxe3 {[%clk
0:04:24.8]} 14. fxe3 {[%clk 0:04:26.5]} 14... f6 {[%clk 0:04:22.5]} 15. Nf3
{[%clk 0:04:21.6]} 15... b6 {[%clk 0:04:19.6]} 16. Ng3 {[%clk 0:04:17.3]} 16...
f5 {[%clk 0:04:05.6]} 17. Ne5 {[%clk 0:04:12.4]} 17... Bd5 {[%clk 0:04:02.4]}
18. c4 {[%clk 0:04:08.3]} 18... Be6 {[%clk 0:03:52.3]} 19. Nxc6 {[%clk
0:04:06.2]} 19... Qd6 {[%clk 0:03:51.8]} 20. d5 {[%clk 0:03:56.3]} 20... Bd7
{[%clk 0:03:50.6]} 21. Nxe7+ {[%clk 0:03:52]} 21... Qxe7 {[%clk 0:03:50.5]} 22.
Qd3 {[%clk 0:03:46]} 22... Rae8 {[%clk 0:03:49.1]} 23. e4 {[%clk 0:03:37.9]}
23... f4 {[%clk 0:03:46.1]} 24. Ne2 {[%clk 0:03:21.1]} 24... Qg5 {[%clk
0:03:41.7]} 25. Rf1 {[%clk 0:03:02]} 25... Bg4 {[%clk 0:03:38.1]} 26. Nd4 {[%clk
0:02:55.2]} 26... Qg6 {[%clk 0:03:27]} 27. Rae1 {[%clk 0:02:46.3]} 27... Re5
{[%clk 0:03:23.3]} 28. Nc6 {[%clk 0:02:37.9]} 28... Ree8 {[%clk 0:03:18.6]} 29.
Nd4 {[%clk 0:02:12.8]} 29... Kh8 {[%clk 0:03:15.3]} 30. h3 {[%clk 0:02:02.6]}
30... Bd7 {[%clk 0:03:11.2]} 31. Qf3 {[%clk 0:01:58.8]} 31... Re7 {[%clk
0:03:09.2]} 32. e5 {[%clk 0:01:52]} 32... Qg5 {[%clk 0:03:04.5]} 33. e6 {[%clk
0:01:44]} 33... Be8 {[%clk 0:03:03.6]} 34. Re4 {[%clk 0:01:33.1]} 34... Bh5
{[%clk 0:02:49.2]} 35. Rxf4 {[%clk 0:01:22.3]} 35... Rg8 {[%clk 0:02:46.3]} 36.
Qf2 {[%clk 0:01:12.5]} 36... Bg6 {[%clk 0:02:36.6]} 37. Rf8 {[%clk 0:01:07.4]}
37... h6 {[%clk 0:02:35.7]} 38. Rxg8+ {[%clk 0:01:03.4]} 38... Kxg8 {[%clk
0:02:35.6]} 39. Nf5 {[%clk 0:00:51.4]} 39... Re8 {[%clk 0:02:31]} 40. Nd4 {[%clk
0:00:37.8]} 40... Be4 {[%clk 0:02:26]} 41. Qf7+ {[%clk 0:00:32.2]} 41... Kh7
{[%clk 0:02:24.4]} 42. Rf2 {[%clk 0:00:25.4]} 42... Re7 {[%clk 0:02:21.1]} 43.
Qf4 {[%clk 0:00:19.7]} 43... Qg6 {[%clk 0:02:20.1]} 44. Nf5 {[%clk 0:00:15.7]}
44... Re8 {[%clk 0:02:17.7]} 45. Nh4 {[%clk 0:00:13.2]} 45... Qg5 {[%clk
0:02:12.5]} 46. Qxe4+ {[%clk 0:00:12]} 46... Kg8 {[%clk 0:02:12]} 47. Ng6 {[%clk
0:00:10.5]} 47... c6 {[%clk 0:02:07.6]} 48. Qf5 {[%clk 0:00:09.5]} 48... Qxf5
{[%clk 0:02:06.1]} 49. Rxf5 {[%clk 0:00:07.9]} 49... cxd5 {[%clk 0:02:05.4]} 50.
cxd5 {[%clk 0:00:06.9]} 50... Kh7 {[%clk 0:02:04.9]} 51. Ne5 {[%clk 0:00:05.3]}
51... Rc8 {[%clk 0:02:03.3]} 52. d6 {[%clk 0:00:04.3]} 52... Rc1+ {[%clk
0:02:01.6]} 53. Kh2 {[%clk 0:00:03.7]} 53... Rd1 {[%clk 0:02:00.8]} 54. d7
{[%clk 0:00:02.7]} 54... Rd6 {[%clk 0:01:59.6]} 55. e7 {[%clk 0:00:01.9]} 55...
Re6 {[%clk 0:01:58.8]} 56. d8=Q {[%clk 0:00:00.9]} 56... Rf6 {[%clk 0:01:55.8]}
0-1

[Event "Live Chess"]
[Site "Chess.com"]
[Date "2023.05.20"]
[Round "-"]
[White "raminguy"]
[Black "Missedidea"]
[Result "1-0"]
[WhiteElo "1963"]
[BlackElo "1722"]
[TimeControl "300"]
[EndTime "14:24:27 PDT"]
[Termination "raminguy won by resignation"]

1. d4 {[%clk 0:04:59.7]} 1... Nf6 {[%clk 0:04:57.3]} 2. Nc3 {[%clk 0:04:59.3]}
2... c5 {[%clk 0:04:55]} 3. d5 {[%clk 0:04:58.1]} 3... d6 {[%clk 0:04:52.7]} 4.
e4 {[%clk 0:04:57.3]} 4... g6 {[%clk 0:04:51.4]} 5. Bf4 {[%clk 0:04:56.5]} 5...
Bg7 {[%clk 0:04:50]} 6. Qd2 {[%clk 0:04:56.2]} 6... h6 {[%clk 0:04:45.5]} 7. h4
{[%clk 0:04:54.5]} 7... a6 {[%clk 0:04:42.6]} 8. a4 {[%clk 0:04:52.9]} 8... Nbd7
{[%clk 0:04:40.7]} 9. f3 {[%clk 0:04:51.8]} 9... Rb8 {[%clk 0:04:37.1]} 10. Bd3
{[%clk 0:04:41.7]} 10... Ne5 {[%clk 0:04:27.7]} 11. Be2 {[%clk 0:04:37.2]} 11...
Bd7 {[%clk 0:04:22.6]} 12. a5 {[%clk 0:04:22.2]} 12... Bc8 {[%clk 0:04:05.1]}
13. Na4 {[%clk 0:03:59.9]} 13... Ned7 {[%clk 0:04:01]} 14. c4 {[%clk 0:03:48.8]}
14... b5 {[%clk 0:03:49.1]} 15. cxb5 {[%clk 0:03:41.7]} 15... axb5 {[%clk
0:03:47.4]} 16. Nc3 {[%clk 0:03:38.2]} 16... Ba6 {[%clk 0:03:44.3]} 17. g4
{[%clk 0:03:19.8]} 17... Ne5 {[%clk 0:03:30.1]} 18. Kf2 {[%clk 0:02:54.1]} 18...
Qc8 {[%clk 0:03:16.4]} 19. Bxe5 {[%clk 0:02:46.6]} 19... dxe5 {[%clk 0:03:13.4]}
20. d6 {[%clk 0:02:41.4]} 20... b4 {[%clk 0:02:55.8]} 21. Na4 {[%clk 0:02:15.3]}
21... Bxe2 {[%clk 0:02:46.6]} 22. Nxe2 {[%clk 0:02:14.1]} 22... exd6 {[%clk
0:02:33.4]} 23. Qxd6 {[%clk 0:02:09.4]} 23... Nd7 {[%clk 0:02:28.6]} 24. Rhd1
{[%clk 0:02:01.5]} 24... Rb7 {[%clk 0:02:26.4]} 25. a6 {[%clk 0:01:53]} 25...
Ra7 {[%clk 0:02:14.9]} 26. Nb6 {[%clk 0:01:27.5]} 26... Nxb6 {[%clk 0:02:01.9]}
27. Qxb6 {[%clk 0:01:27.4]} 27... Rc7 {[%clk 0:01:49.6]} 28. a7 {[%clk 0:01:22]}
28... O-O {[%clk 0:01:47.1]} 29. a8=Q {[%clk 0:01:18.8]} 29... Qxa8 {[%clk
0:01:41]} 30. Rxa8 {[%clk 0:01:16.9]} 30... Rxa8 {[%clk 0:01:38.1]} 31. Qxc7
{[%clk 0:01:14.8]} 31... Ra2 {[%clk 0:01:34.2]} 32. Rd2 {[%clk 0:01:12.1]} 32...
Bf8 {[%clk 0:01:29.9]} 33. Qc8 {[%clk 0:01:08.1]} 33... Kg7 {[%clk 0:01:27.9]}
34. Rd8 {[%clk 0:01:03.1]} 34... Be7 {[%clk 0:01:26.1]} 35. Rg8+ {[%clk
0:01:01.9]} 35... Kf6 {[%clk 0:01:22.6]} 36. Qc6+ {[%clk 0:00:58.7]} 1-0

[Event "Live Chess"]
[Site "Chess.com"]
[Date "2023.05.20"]
[Round "-"]
[White "Nazar_777"]
[Black "Tushinskiy"]
[Result "0-1"]
[WhiteElo "1607"]
[BlackElo "2149"]
[TimeControl "300"]
[EndTime "14:24:36 PDT"]
[Termination "Tushinskiy won by checkmate"]

1. e3 {[%clk 0:04:52.6]} 1... d5 {[%clk 0:04:52.2]} 2. h4 {[%clk 0:04:51.5]}
2... c6 {[%clk 0:04:52.1]} 3. a3 {[%clk 0:04:50.7]} 3... Nf6 {[%clk 0:04:52]} 4.
c4 {[%clk 0:04:49.6]} 4... e6 {[%clk 0:04:50.7]} 5. cxd5 {[%clk 0:04:48.9]} 5...
exd5 {[%clk 0:04:50.6]} 6. Nc3 {[%clk 0:04:48.4]} 6... Bd6 {[%clk 0:04:49.9]} 7.
Be2 {[%clk 0:04:47.9]} 7... Qe7 {[%clk 0:04:49.4]} 8. Nf3 {[%clk 0:04:47.4]}
8... Bg4 {[%clk 0:04:45.8]} 9. Qc2 {[%clk 0:04:46.8]} 9... Nbd7 {[%clk
0:04:45.2]} 10. Ng5 {[%clk 0:04:45.8]} 10... h6 {[%clk 0:04:41]} 11. Nf3 {[%clk
0:04:43.4]} 11... O-O-O {[%clk 0:04:39.5]} 12. b4 {[%clk 0:04:41.4]} 12... Kb8
{[%clk 0:04:34.2]} 13. Bb2 {[%clk 0:04:40.4]} 13... h5 {[%clk 0:04:30.5]} 14.
Rc1 {[%clk 0:04:39.4]} 14... Ne5 {[%clk 0:04:29.2]} 15. Na4 {[%clk 0:04:36.9]}
15... Rhe8 {[%clk 0:04:21.3]} 16. Nc5 {[%clk 0:04:35.7]} 16... Bxf3 {[%clk
0:04:16]} 17. Bxf3 {[%clk 0:04:34.2]} 17... Nc4 {[%clk 0:04:15.1]} 18. Be2
{[%clk 0:04:28.3]} 18... Bxc5 {[%clk 0:04:12.6]} 19. bxc5 {[%clk 0:04:26.8]}
19... Nxb2 {[%clk 0:04:10]} 20. Qxb2 {[%clk 0:04:25.1]} 20... Ne4 {[%clk
0:04:09.2]} 21. Rb1 {[%clk 0:04:23.3]} 21... Nxc5 {[%clk 0:04:06.1]} 22. d4
{[%clk 0:04:20.2]} 22... Ne6 {[%clk 0:04:04.8]} 23. Bxh5 {[%clk 0:04:16.7]}
23... g6 {[%clk 0:04:00]} 24. Bg4 {[%clk 0:04:15.4]} 24... f5 {[%clk 0:03:59.1]}
25. Bf3 {[%clk 0:04:12.7]} 25... f4 {[%clk 0:03:57.9]} 26. Bg4 {[%clk
0:04:09.8]} 26... Rd7 {[%clk 0:03:53.8]} 27. h5 {[%clk 0:04:02.8]} 27... fxe3
{[%clk 0:03:51.9]} 28. fxe3 {[%clk 0:04:01.4]} 28... gxh5 {[%clk 0:03:47]} 29.
Rxh5 {[%clk 0:03:59.9]} 29... Rc7 {[%clk 0:03:45.5]} 30. Re5 {[%clk 0:03:58.2]}
30... Qh4+ {[%clk 0:03:43.8]} 31. Kd2 {[%clk 0:03:44.9]} 31... Qxg4 {[%clk
0:03:41.4]} 32. Kc3 {[%clk 0:03:38.7]} 32... c5 {[%clk 0:03:34.6]} 33. Qb5
{[%clk 0:03:23.2]} 33... cxd4+ {[%clk 0:03:29.6]} 34. Kb2 {[%clk 0:03:09]} 34...
Rec8 {[%clk 0:03:24.2]} 35. Ka1 {[%clk 0:02:51.6]} 35... dxe3 {[%clk 0:03:16.9]}
36. Rxd5 {[%clk 0:02:47.6]} 36... Nd4 {[%clk 0:03:08.5]} 37. Qb4 {[%clk
0:02:38.8]} 37... Nc2+ {[%clk 0:03:06.9]} 38. Ka2 {[%clk 0:02:19.8]} 38... Nxb4+
{[%clk 0:03:06.8]} 39. Rxb4 {[%clk 0:02:18.8]} 39... Qxg2+ {[%clk 0:03:04.4]}
40. Kb3 {[%clk 0:02:17.4]} 40... Qxd5+ {[%clk 0:03:00.8]} 41. Ka4 {[%clk
0:02:15.9]} 41... Rc4 {[%clk 0:02:52.8]} 42. Kb3 {[%clk 0:02:03.2]} 42... Rxb4+
{[%clk 0:02:35.2]} 43. Kxb4 {[%clk 0:02:01.4]} 43... Rc4+ {[%clk 0:02:32.6]} 44.
Kb3 {[%clk 0:01:59.4]} 44... Qd3+ {[%clk 0:02:32]} 45. Kb2 {[%clk 0:01:57.6]}
45... Rc2+ {[%clk 0:02:31.9]} 46. Kb1 {[%clk 0:01:56.2]} 46... Qd1# {[%clk
0:02:31.8]} 0-1

[Event "Live Chess"]
[Site "Chess.com"]
[Date "2023.05.20"]
[Round "-"]
[White "Singapourfeuj"]
[Black "ACx04"]
[Result "1-0"]
[WhiteElo "2252"]
[BlackElo "415"]
[TimeControl "300"]
[EndTime "14:24:38 PDT"]
[Termination "Singapourfeuj won by resignation"]

1. d4 {[%clk 0:04:58.7]} 1... d5 {[%clk 0:04:58]} 2. c4 {[%clk 0:04:57.6]} 2...
dxc4 {[%clk 0:04:56.7]} 3. Nf3 {[%clk 0:04:56.8]} 3... Qd5 {[%clk 0:04:50.1]} 4.
Nc3 {[%clk 0:04:55.5]} 4... Qc6 {[%clk 0:04:47.9]} 5. e4 {[%clk 0:04:54.5]} 5...
e6 {[%clk 0:04:46.6]} 6. d5 {[%clk 0:04:53.1]} 6... exd5 {[%clk 0:04:45.7]} 7.
exd5 {[%clk 0:04:52.1]} 7... Qc5 {[%clk 0:04:44.8]} 8. Be3 {[%clk 0:04:49.2]}
8... Qb4 {[%clk 0:04:42.3]} 9. Qe2 {[%clk 0:04:45.2]} 9... Na6 {[%clk
0:04:38.7]} 10. Bc5+ {[%clk 0:04:43.7]} 10... Be7 {[%clk 0:04:27.6]} 11. Bxb4
{[%clk 0:04:42.7]} 11... Nxb4 {[%clk 0:04:26.7]} 12. O-O-O {[%clk 0:04:39.7]}
12... Bf5 {[%clk 0:04:21]} 13. Qxc4 {[%clk 0:04:35]} 13... Bc2 {[%clk
0:04:18.9]} 14. Re1 {[%clk 0:04:31.7]} 14... Nxa2+ {[%clk 0:04:15]} 15. Qxa2
{[%clk 0:04:29.8]} 15... Bg6 {[%clk 0:04:13]} 16. Bb5+ {[%clk 0:04:28]} 16... c6
{[%clk 0:04:11.2]} 17. dxc6 {[%clk 0:04:27.1]} 17... bxc6 {[%clk 0:04:10.1]} 18.
Bxc6+ {[%clk 0:04:26.1]} 1-0